bitfinex/quotes_SOLUSD_20240926
["timestamp","ask_amount","ask_price","bid_price","bid_amount"]
[1727342143969,6.6231,150.99,150.96,15.0724]
[1727342146753,6.6226,151.0,150.96,15.0724]
[1727342147466,0.2549976,151.04,150.96,21.6965]
[1727342147658,6.6224,151.01,150.96,21.6965]
[1727342148383,6.6226,151.0,150.96,21.6965]
[1727342149986,6.622,151.01,150.96,21.6965]
[1727342150363,6.6228,151.0,150.96,15.0724]
[1727342154282,0.12549,151.03,150.96,15.0724]
[1727342154283,6.6235,150.98,150.96,15.0724]
[1727342155374,6.6246,150.96,150.92,21.6875]
[1727342155582,6.6246,150.96,150.92,15.2421]
[1727342155960,6.6246,150.96,150.92,21.8679]
[1727342157179,1.38437786,151.0,150.93,6.6254]
[1727342157357,6.6234,150.98,150.93,6.6254]
[1727342160886,6.6238,150.97,150.92,21.868]
[1727342162883,6.6238,150.97,150.92,15.2421]
[1727342163084,6.6238,150.97,150.93,6.6253]
[1727342166794,21.38437786,151.0,150.92,15.2421]
[1727342166978,6.6254,150.94,150.9,0.0728967]
[1727342167486,6.6254,150.94,150.9,6.6996967]
[1727342169369,6.6254,150.94,150.9,0.0728967]
[1727342171495,6.6254,150.94,150.9,6.6995967]
[1727342172011,6.6247,150.95,150.9,6.6995967]
[1727342172383,6.6247,150.95,150.91,6.6263]
[1727342172583,6.6243,150.96,150.91,6.6263]
[1727342178904,1.38437786,150.96,150.9,23.2660967]
[1727342179104,1.38437786,150.96,150.9,0.0728967]
[1727342179293,6.6263,150.92,150.9,0.0728967]
[1727342185732,6.6119,150.96,150.9,13.51727743]
[1727342186410,6.6252,150.94,150.9,13.51727743]
[1727342186607,6.6252,150.94,150.9,20.14407743]
[1727342189408,6.6119,150.96,150.9,20.14407743]
[1727342189715,6.6248,150.95,150.9,20.14407743]
[1727342192813,6.6248,150.95,150.91,1.32492076]
[1727342193117,6.6248,150.95,150.91,6.6264]
[1727342193312,6.93632516,150.97,150.91,6.6264]
[1727342193510,6.6242,150.96,150.91,6.6264]
[1727342193715,6.6242,150.96,150.92,13.44438073]
[1727342193909,6.93632516,150.97,150.92,13.44438073]
[1727342194096,13.56022516,150.97,150.92,20.07028073]
[1727342197525,13.56022516,150.97,150.92,6.6259]
[1727342202134,13.56022516,150.97,150.93,6.6254]
[1727342202310,6.6239,150.97,150.93,6.6254]
[1727342202712,6.6239,150.97,150.92,6.6258]
[1727342204534,44.55287786,151.0,150.92,6.6258]
[1727342204722,6.6243,150.96,150.92,6.6258]
[1727342216148,6.6243,150.96,150.93,6.6255]
[1727342216928,6.6239,150.97,150.93,23.1894]
[1727342219150,6.6239,150.97,150.93,16.5639]
[1727342219373,6.6234,150.98,150.94,21.39411884]
[1727342219648,6.6234,150.98,150.94,20.06948073]
[1727342219843,16.5539,151.03,150.94,13.44438073]
[1727342220047,6.6233,150.99,150.95,7.94919151]
[1727342220435,6.6234,150.98,150.95,7.94919151]
[1727342220653,20.0,151.01,150.95,6.6246]
[1727342221046,20.0,151.01,150.96,14.76889862]
[1727342221347,6.623,150.99,150.96,14.76889862]
[1727342221550,6.6226,151.0,150.96,20.06858073]
[1727342222256,6.6226,151.0,150.97,1.32444134]
[1727342223243,23.48461029,151.03,150.96,13.44438073]
[1727342223439,6.6221,151.01,150.97,6.6235]
[1727342225663,6.93071029,151.03,150.96,13.44438073]
[1727342225956,6.6229,150.99,150.95,36.63018073]
[1727342226456,17.24670321,151.03,150.93,29.56448073]
[1727342226657,17.24670321,151.03,150.94,6.625]
[1727342226658,6.6234,150.98,150.94,6.625]
[1727342226846,6.623,150.99,150.95,6.6246]
[1727342228274,6.6234,150.98,150.94,6.6249]
[1727342230962,6.6248,150.95,150.93,16.1201]
[1727342236666,6.6244,150.96,150.93,16.1201]
[1727342238943,23.4876276,150.98,150.93,16.1201]
[1727342239147,6.6256,150.93,150.9,0.0728967]
[1727342239360,6.6264,150.91,150.9,0.0728967]
[1727342239563,22.85569,150.96,150.9,0.0728967]
[1727342239564,6.6261,150.92,150.9,0.0728967]
[1727342242259,22.7302,150.96,150.9,0.0728967]
[1727342242260,6.6257,150.93,150.9,0.0728967]
[1727342242462,6.6257,150.93,150.91,1.32507045]
[1727342243066,6.6257,150.93,150.9,0.0728967]
[1727342243467,6.6254,150.94,150.9,6.6996967]
[1727342258585,17.94507786,150.96,150.9,6.6996967]
[1727342258792,6.6256,150.93,150.9,6.6996967]
[1727342261675,6.6262,150.92,150.9,0.0728967]
[1727342262081,6.6264,150.91,150.9,0.0728967]
[1727342267190,6.6261,150.92,150.9,0.0728967]
[1727342270493,6.6261,150.92,150.9,1.39804893]
[1727342270694,6.3271,150.95,150.9,1.39804893]
[1727342270897,6.6254,150.94,150.91,1.32507443]
[1727342271103,6.6254,150.94,150.9,6.6996967]
[1727342276399,6.6254,150.94,150.91,1.32499567]
[1727342276997,6.6254,150.94,150.9,6.6996967]
[1727342278315,6.626,150.92,150.9,0.0728967]
[1727342280480,6.6248,150.95,150.91,6.6264]
[1727342280787,6.6252,150.94,150.9,6.6994967]
[1727342288110,6.6238,150.97,150.93,20.06978073]
[1727342288725,6.6238,150.97,150.93,36.63358073]
[1727342289897,6.6231,150.99,150.95,20.06878073]
[1727342290108,13.55499779,151.0,150.96,6.6242]
[1727342290418,6.6227,151.0,150.96,6.6242]
[1727342291718,6.6232,150.99,150.95,45.37668073]
[1727342291894,6.6238,150.97,150.93,6.6254]
[1727342292104,6.6243,150.96,150.92,42.82378073]
[1727342294129,6.6239,150.97,150.93,6.6255]
[1727342296330,16.5553,151.01,150.92,36.19788073]
[1727342296531,6.6247,150.95,150.92,23.1899]
[1727342296734,6.6247,150.95,150.92,16.5641]
[1727342297700,6.6247,150.95,150.92,23.1901]
[1727342298520,6.6243,150.96,150.93,13.44438073]
[1727342300527,6.6243,150.96,150.92,23.1901]
[1727342304343,6.6239,150.97,150.93,20.06988073]
[1727342304719,6.6235,150.98,150.94,7.9495862]
[1727342304918,6.6235,150.98,150.95,13.44438073]
[1727342305313,13.55552932,150.99,150.95,20.06898073]
[1727342305622,13.55552932,150.99,150.94,16.5627]
[1727342305623,1.38437786,150.98,150.94,16.5627]
[1727342305830,6.6238,150.97,150.94,16.5627]
[1727342307634,6.6235,150.98,150.94,23.1878]
[1727342308135,8.00787786,150.98,150.94,23.1878]
[1727342308833,6.6235,150.98,150.94,23.1878]
[1727342309234,6.624,150.97,150.94,16.5627]
[1727342309533,6.6242,150.96,150.93,6.6255]
[1727342309709,6.6242,150.96,150.92,20.07028073]
[1727342310131,6.6256,150.93,150.91,16.6607]
[1727342310325,6.6256,150.93,150.9,0.0728967]
[1727342311640,6.6252,150.94,150.9,6.6996967]
[1727342312031,13.55939162,150.95,150.91,6.6264]
[1727342312216,13.55939162,150.95,150.92,1.32504105]
[1727342314639,13.55939162,150.95,150.91,6.6264]
[1727342316320,13.55939162,150.95,150.92,1.32498981]
[1727342316540,13.55939162,150.95,150.92,14.76937054]
[1727342316721,6.625,150.95,150.92,21.39537054]
[1727342317139,6.6244,150.96,150.92,21.39537054]
[1727342317424,6.6244,150.96,150.92,20.07038073]
[1727342317627,6.6244,150.96,150.93,1.32496737]
[1727342318430,6.6244,150.96,150.93,1.32497305]
[1727342320440,6.6244,150.96,150.92,21.39534806]
[1727342320619,6.6244,150.96,150.92,20.07038073]
[1727342321643,13.55864686,150.97,150.93,6.6255]
[1727342322344,6.6243,150.96,150.92,36.63488073]
[1727342322751,6.6243,150.96,150.93,6.6255]
[1727342323222,6.93454686,150.97,150.95,6.6243]
[1727342323423,6.6236,150.98,150.94,30.00708073]
[1727342323937,6.6236,150.98,150.94,36.63208073]
[1727342324937,8.00797786,150.98,150.94,36.63208073]
[1727342325240,6.6236,150.98,150.94,36.63208073]
[1727342325950,6.6236,150.98,150.95,6.6247]
[1727342326825,6.6236,150.98,150.94,30.00708073]
[1727342327042,6.6236,150.98,150.94,36.63198073]
[1727342331950,6.93382914,150.99,150.94,30.00708073]
[1727342332252,6.93382914,150.99,150.95,6.6246]
[1727342332253,6.6231,150.99,150.95,6.6246]
[1727342337856,13.55546785,151.01,150.97,6.6237]
[1727342338153,13.55546785,151.01,151.0,13.44438073]
[1727342338154,6.93316785,151.01,151.0,13.44438073]
[1727342338366,6.6214,151.03,151.0,13.44438073]
[1727342341657,13.80854749,151.04,151.02,13.44438073]
[1727342341853,7.18764749,151.04,151.02,13.44438073]
[1727342342044,0.2549976,151.04,151.02,13.44438073]
[1727342342648,0.2549976,151.04,151.02,14.7684967]
[1727342342845,0.2549976,151.04,151.02,13.44438073]
[1727342345852,0.2549976,151.04,151.02,20.06598073]
[1727342347264,0.2549976,151.04,151.02,6.6216]
[1727342347865,0.2549976,151.04,151.02,20.06598073]
[1727342348341,0.2549976,151.04,151.01,6.622]
[1727342348539,6.8757976,151.04,151.0,36.62278073]
[1727342348961,0.2549976,151.04,151.0,30.00038073]
[1727342349247,6.6212,151.03,151.0,30.00038073]
[1727342353069,6.6219,151.02,150.98,20.06758073]
[1727342353247,6.622,151.01,150.98,13.44438073]
[1727342353662,1.38437786,151.03,150.98,13.44438073]
[1727342353868,6.6217,151.02,150.98,20.06768073]
[1727342354143,1.38437786,151.03,150.98,13.44438073]
[1727342354370,6.6217,151.02,150.98,20.06768073]
[1727342355068,6.6214,151.03,151.0,13.44438073]
[1727342355274,13.80818993,151.04,151.01,1.32428415]
[1727342355895,13.80818993,151.04,151.0,20.06678073]
[1727342356575,6.8758976,151.04,151.0,20.06678073]
[1727342357983,0.2549976,151.04,151.0,13.44438073]
[1727342358279,6.6213,151.03,151.0,13.44438073]
[1727342358669,6.6213,151.03,150.99,23.1798]
[1727342358978,6.8757976,151.04,151.0,20.06648073]
[1727342359678,8.00577786,151.03,150.99,23.18]
[1727342360680,6.6214,151.03,150.99,23.18]
[1727342361481,6.6216,151.02,150.99,16.5572]
[1727342361864,6.6213,151.03,150.99,36.62448073]
[1727342366062,6.6213,151.03,151.0,1.3243175]
[1727342366566,6.8758976,151.04,151.0,7.9467175]
[1727342366872,6.8758976,151.04,151.01,13.44438073]
[1727342370778,0.2549976,151.04,151.01,20.06628073]
[1727342371481,6.8759976,151.04,151.01,13.44438073]
[1727342373671,0.2549976,151.04,151.01,13.44438073]
[1727342373883,0.2549976,151.04,151.02,6.6216]
[1727342375969,0.2549976,151.04,151.01,36.62118073]
[1727342378492,0.2549976,151.04,151.01,29.99938073]
[1727342378678,0.2549976,151.04,151.02,6.6216]
[1727342380599,0.2549976,151.04,151.01,29.99938073]
[1727342380600,0.2549976,151.04,151.01,36.62128073]
[1727342381497,0.2549976,151.04,151.01,23.1769]
[1727342383578,6.8757976,151.04,151.01,23.1769]
[1727342387183,0.2549976,151.04,151.01,23.1769]
[1727342395111,0.2549976,151.04,151.02,13.44438073]
[1727342395407,0.2549976,151.04,151.03,6.6212]
[1727342396497,0.2549976,151.04,151.03,30.398084]
[1727342401012,0.2549976,151.04,151.03,44.09344473]
[1727342401208,0.2549976,151.08,151.07,20.06378073]
[1727342402199,0.2549976,151.08,151.07,45.16427093]
[1727342402817,0.2549976,151.08,151.07,43.84066473]
[1727342405808,0.2549976,151.08,151.07,43.96615473]
[1727342407604,0.2549976,151.08,151.07,44.09164473]
[1727342409020,0.2549976,151.08,151.07,30.647264]
[1727342409227,0.2549976,151.08,151.07,44.09164473]
[1727342409411,0.2549976,151.13,151.09,16.5464]
[1727342409609,0.2549976,151.13,151.12,13.44438073]
[1727342409811,0.2549976,151.13,151.12,21.38485652]
[1727342410132,0.2549976,151.13,151.12,45.16174052]
[1727342411015,0.2549976,151.13,151.12,45.28723052]
[1727342412318,0.2549976,151.13,151.12,43.96395473]
[1727342412712,0.2549976,151.13,151.12,43.83846473]
[1727342413530,0.2549976,151.13,151.12,45.28703248]
[1727342413922,0.2549976,151.13,151.12,43.96395473]
[1727342414637,0.2549976,151.13,151.12,45.41246073]
[1727342414815,0.2549976,151.13,151.12,44.08944473]
[1727342417513,0.2549976,151.17,151.16,6.6155]
[1727342417727,0.2549976,151.17,151.16,20.05988073]
[1727342421839,0.2549976,151.17,151.16,21.38273335]
[1727342423242,0.2549976,151.17,151.16,45.28510735]
[1727342425333,0.2549976,151.17,151.16,45.41059735]
[1727342428523,0.1068765,151.19,151.17,24.027864]
[1727342428749,0.3278943,151.22,151.2,16.534]
[1727342428959,0.3278943,151.22,151.2,36.59198073]
[1727342431632,0.3278943,151.22,151.21,13.44438073]
[1727342432043,0.3278943,151.22,151.21,20.05768073]
[1727342436438,0.3278943,151.22,151.2,16.534]
[1727342436756,0.3278943,151.22,151.2,29.97838073]
[1727342437363,0.3278943,151.22,151.2,36.59208073]
[1727342437537,0.3278943,151.22,151.2,29.97838073]
[1727342438364,0.3278943,151.22,151.19,6.6141]
[1727342438669,0.3278943,151.22,151.19,20.05848073]
[1727342438837,0.3278943,151.22,151.19,13.44438073]
[1727342439161,0.3278943,151.22,151.2,6.6137]
[1727342439346,0.3278943,151.22,151.21,13.44438073]
[1727342440164,0.3278943,151.22,151.2,20.05808073]
[1727342440741,6.9409943,151.22,151.19,16.5351]
[1727342442445,0.3278943,151.22,151.19,29.97948073]
[1727342444460,1.71227216,151.22,151.19,29.97948073]
[1727342444658,6.6136,151.21,151.17,6.615]
[1727342444840,7.99807786,151.2,151.16,23.1533]
[1727342445367,6.6145,151.19,151.15,6.6159]
[1727342445537,6.6145,151.19,151.15,20.06028073]
[1727342445742,1.38437786,151.2,151.15,20.06028073]
[1727342445994,6.6139,151.2,151.15,20.06028073]
[1727342446456,1.38437786,151.19,151.16,6.6153]
[1727342446859,6.0334,151.18,151.12,16.5423]
[1727342447071,6.0334,151.18,151.12,23.1594]
[1727342447072,1.38437786,151.17,151.12,23.1594]
[1727342447237,7.99957786,151.17,151.13,6.6167]
[1727342449258,6.6152,151.17,151.13,20.06108073]
[1727342449564,6.0334,151.18,151.14,14.76756569]
[1727342449762,6.0334,151.18,151.15,6.6159]
[1727342452356,12.648,151.18,151.14,36.60118073]
[1727342454168,17.66067786,151.17,151.11,16.5441]
[1727342454374,17.66067786,151.17,151.04,19.23450627]
[1727342454375,6.6166,151.14,151.1,6.6178]
[1727342454874,6.6162,151.15,151.1,6.6178]
[1727342455573,6.6162,151.15,151.09,13.44438073]
[1727342455773,1.38437786,151.14,151.11,6.6176]
[1727342455978,1.38437786,151.14,151.09,13.44438073]
[1727342456169,1.38437786,151.14,151.1,6.6179]
[1727342456872,13.53438661,151.16,151.12,6.6171]
[1727342457174,8.00027786,151.15,151.11,6.6175]
[1727342457859,6.6159,151.15,151.11,6.6175]
[1727342458060,6.91888661,151.16,151.1,16.5448]
[1727342458257,14.91886447,151.16,151.12,6.6172]
[1727342459570,6.616,151.15,151.11,6.6176]
[1727342459865,1.38437786,151.14,151.11,6.6176]
[1727342461764,8.00067786,151.14,151.1,23.1628]
[1727342461971,6.6163,151.14,151.1,23.1628]
[1727342462459,1.38437786,151.13,151.1,23.1628]
[1727342463156,8.00067786,151.14,151.11,6.6176]
[1727342463474,6.91888661,151.16,151.11,6.6176]
[1727342463475,8.00047786,151.15,151.11,6.6176]
[1727342463850,6.6161,151.15,151.11,6.6176]
[1727342465549,14.91906447,151.16,151.12,6.6171]
[1727342466577,24.27587786,151.17,151.13,20.06108073]
[1727342466749,24.27587786,151.17,151.14,6.6163]
[1727342467167,12.95403489,151.18,151.13,13.44438073]
[1727342467476,19.56893489,151.18,151.14,23.1567]
[1727342467647,1.38437786,151.17,151.14,23.1567]
[1727342469257,7.99937786,151.17,151.14,16.5406]
[1727342469866,6.6157,151.16,151.13,6.6168]
[1727342470188,7.99957786,151.17,151.13,6.6168]
[1727342470352,6.6152,151.17,151.13,6.6168]
[1727342471054,6.6152,151.17,151.11,13.44438073]
[1727342471255,14.03257786,151.18,151.14,6.6163]
[1727342475258,13.53192695,151.2,151.16,6.6155]
[1727342475466,6.91802695,151.2,151.15,29.98408073]
[1727342475666,6.6142,151.19,151.15,36.59988073]
[1727342476010,6.6142,151.19,151.15,23.1555]
[1727342476167,1.38437786,151.18,151.15,23.1555]
[1727342476484,7.99897786,151.18,151.15,16.5397]
[1727342476683,6.6146,151.18,151.15,16.5397]
[1727342477184,6.6143,151.19,151.15,16.5397]
[1727342477362,1.38437786,151.18,151.15,16.5397]
[1727342478062,6.6143,151.19,151.15,16.5397]
[1727342478269,7.99817786,151.2,151.16,6.6153]
[1727342479156,1.38437786,151.2,151.15,16.5397]
[1727342479573,6.6153,151.17,151.12,23.1592]
[1727342479776,1.38437786,151.16,151.13,6.6167]
[1727342482184,6.6153,151.17,151.13,6.6167]
[1727342482569,6.6147,151.18,151.14,6.6163]
[1727342483080,0.12549,151.2,151.12,16.5423]
[1727342483465,6.6147,151.18,151.14,6.6163]
[1727342483788,1.38437786,151.17,151.14,6.6163]
[1727342485762,6.6147,151.18,151.14,6.6163]
[1727342486078,1.38437786,151.2,151.15,6.6156]
[1727342486079,6.6143,151.19,151.15,6.6156]
[1727342486472,1.38437786,151.2,151.15,13.44438073]
[1727342486778,7.99817786,151.2,151.16,6.6154]
[1727342490287,7.99827786,151.2,151.16,6.6154]
[1727342490493,1.38437786,151.2,151.14,0.12549]
[1727342490680,1.38437786,151.2,151.17,6.6149]
[1727342490879,7.99827786,151.2,151.16,16.5383]
[1727342491191,6.6139,151.2,151.16,16.5383]
[1727342491374,6.6139,151.2,151.16,23.1537]
[1727342491887,1.38437786,151.19,151.16,23.1537]
[1727342492287,7.99827786,151.2,151.16,23.1537]
[1727342493371,13.52937788,151.21,151.17,6.6148]
[1727342493591,7.99797786,151.21,151.17,6.6148]
[1727342497299,1.38437786,151.21,151.14,6.6162]
[1727342497490,6.6143,151.19,151.15,6.6158]
[1727342497688,1.38437786,151.18,151.15,6.6158]
[1727342498089,6.6143,151.19,151.15,6.6158]
[1727342498394,6.6139,151.2,151.16,6.6154]
[1727342498600,1.38437786,151.19,151.16,6.6154]
[1727342498777,7.99827786,151.2,151.16,6.6154]
[1727342499492,1.38437786,151.21,151.18,23.1508]
[1727342499694,7.99777786,151.21,151.18,16.5365]
[1727342501402,7.99777786,151.21,151.17,6.6149]
[1727342502591,7.99767786,151.21,151.17,23.1523]
[1727342510780,6.6138,151.2,151.17,16.5373]
[1727342510983,1.38437786,151.19,151.17,16.5373]
[1727342511379,1.38437786,151.19,151.16,6.6153]
[1727342513297,1.38437786,151.19,151.14,13.44438073]
[1727342513518,7.99797786,151.21,151.17,23.1523]
[1727342514984,6.6137,151.2,151.17,23.1523]
[1727342518287,7.99787786,151.21,151.17,23.1523]
[1727342519600,16.5301,151.24,151.17,23.1523]
[1727342519601,20.12549,151.24,151.17,23.1523]
[1727342519799,20.0,151.24,151.17,23.1523]
[1727342520399,20.0,151.24,151.18,6.6146]
[1727342520801,20.0,151.24,151.17,16.5374]
[1727342521002,6.6133,151.21,151.17,23.1523]
[1727342525121,6.6133,151.21,151.17,36.59668073]
[1727342525325,6.6133,151.21,151.17,23.1523]
[1727342525620,14.09255928,151.25,151.17,23.1523]
[1727342525621,0.23595928,151.25,151.17,23.1523]
[1727342525812,0.12549,151.24,151.17,23.1523]
[1727342527417,6.6136,151.21,151.17,23.1523]
[1727342530620,6.6139,151.2,151.17,16.5374]
[1727342531122,6.6134,151.21,151.17,23.1524]
[1727342534702,16.5301,151.24,151.17,16.5374]
[1727342534901,6.613,151.22,151.18,6.6146]
[1727342535919,6.6125,151.23,151.19,6.6141]
[1727342536327,6.6129,151.22,151.18,20.05888073]
[1727342538028,6.6125,151.23,151.19,6.614]
[1727342540004,6.6129,151.22,151.18,20.05878073]
[1727342542326,6.91575684,151.25,151.17,16.5374]
[1727342542528,6.6134,151.21,151.17,23.1523]
[1727342545027,6.6134,151.21,151.17,36.59668073]
[1727342552526,6.613,151.22,151.18,7.93709836]
[1727342552705,6.613,151.22,151.18,6.6143]
[1727342553908,6.6121,151.24,151.2,6.6137]
[1727342554114,6.6121,151.24,151.2,7.93629892]
[1727342555534,6.6121,151.24,151.2,6.6137]
[1727342559325,0.2549976,151.26,151.23,6.6124]
[1727342559526,0.2549976,151.26,151.23,20.05678073]
[1727342560135,6.8661976,151.26,151.22,6.6128]
[1727342560333,6.6116,151.25,151.21,29.1847]
[1727342561152,6.8663976,151.26,151.22,20.05718073]
[1727342572732,6.6116,151.25,151.21,42.62918073]
[1727342573132,0.2549976,151.26,151.19,15.0127]
[1727342573345,0.2549976,151.26,151.2,20.05808073]
[1727342573633,6.6121,151.24,151.2,20.05808073]
[1727342573834,6.6117,151.25,151.21,6.6132]
[1727342574136,6.6123,151.24,151.2,23.1478]
[1727342574442,6.6123,151.24,151.2,36.59218073]
[1727342577963,6.6123,151.24,151.2,23.1478]
[1727342578132,6.6123,151.24,151.21,13.44438073]
[1727342578628,6.6123,151.24,151.21,20.05758073]
[1727342578831,6.6116,151.25,151.21,20.05758073]
[1727342579033,6.6116,151.25,151.22,13.44438073]
[1727342582156,0.2549976,151.26,151.22,20.05718073]
[1727342582456,6.8661976,151.26,151.23,13.44438073]
[1727342585058,0.2549976,151.26,151.2,16.5342]
[1727342585361,6.6117,151.25,151.21,20.05738073]
[1727342589957,6.6125,151.23,151.19,21.6267]
[1727342590139,6.6133,151.21,151.19,15.0127]
[1727342590345,6.6133,151.21,151.17,22.701]
[1727342590346,6.6136,151.21,151.17,29.3159]
[1727342590856,6.6136,151.21,151.18,6.6146]
[1727342591163,6.6136,151.21,151.17,29.3159]
[1727342594845,6.6136,151.21,151.17,23.1515]
[1727342595848,6.6136,151.21,151.18,6.6145]
[1727342596351,6.613,151.22,151.18,6.6145]
[1727342609451,6.613,151.22,151.15,49.1455]
[1727342609452,16.5324,151.22,151.15,16.0673]
[1727342609657,0.25098,151.21,151.14,16.5402]
[1727342609854,0.25098,151.21,151.15,6.6156]
[1727342609855,6.6143,151.19,151.15,6.6156]
[1727342610166,0.12549,151.21,151.14,16.5402]
[1727342610364,6.6147,151.18,151.14,23.1561]
[1727342616091,24.027864,151.21,151.11,15.8549976]
[1727342616267,6.6154,151.17,151.13,6.6167]
[1727342617286,6.6156,151.16,151.12,6.6169]
[1727342618577,6.6151,151.17,151.13,6.6167]
[1727342624887,6.6155,151.16,151.12,6.6171]
[1727342642577,6.6165,151.14,151.11,16.7982976]
[1727342642777,6.74269,151.12,151.11,0.2549976]
[1727342644201,6.6172,151.12,151.11,0.2549976]
[1727342648383,6.74269,151.12,151.11,0.2549976]
[1727342650716,6.86818,151.12,151.11,0.2549976]
[1727342652610,30.645064,151.12,151.11,0.2549976]
[1727342653187,6.86818,151.12,151.11,0.2549976]
[1727342658489,6.74269,151.12,151.11,0.2549976]
[1727342662009,6.6172,151.12,151.11,0.2549976]
[1727342665820,6.74269,151.12,151.11,0.2549976]
[1727342666919,6.6172,151.12,151.11,0.2549976]
[1727342677406,0.12549,151.15,151.11,0.2549976]
[1727342677707,6.6169,151.13,151.11,0.2549976]
[1727342678913,6.6166,151.14,151.11,0.2549976]
[1727342679416,6.6168,151.13,151.11,0.2549976]
[1727342687032,6.6165,151.14,151.11,0.2549976]
[1727342688937,23.46208049,151.16,151.11,0.2549976]
[1727342689122,6.6169,151.13,151.11,0.2549976]
[1727342689936,23.46208049,151.16,151.11,0.2549976]
[1727342690135,6.6172,151.12,151.11,0.2549976]
[1727342693318,6.91744477,151.14,151.11,0.2549976]
[1727342693543,6.6169,151.13,151.11,0.2549976]
[1727342693742,13.53384477,151.14,151.11,13.69937833]
[1727342694041,6.6164,151.14,151.11,13.69937833]
[1727342696534,6.6159,151.15,151.11,20.31697833]
[1727342697045,6.6164,151.14,151.11,0.2549976]
[1727342699535,23.44687959,151.17,151.11,0.2549976]
[1727342699736,6.6168,151.13,151.11,0.2549976]
[1727342706540,6.6165,151.14,151.11,0.2549976]
[1727342707955,6.6165,151.14,151.11,6.8725976]
[1727342708442,6.6161,151.15,151.11,6.8725976]
[1727342710234,6.90847959,151.17,151.13,13.44438073]
[1727342710443,6.6144,151.19,151.15,6.6156]
[1727342710643,6.6144,151.19,151.15,20.05998073]
[1727342710833,6.89919893,151.22,151.15,13.44438073]
[1727342711036,6.6141,151.2,151.16,6.6154]
[1727342712157,6.6142,151.19,151.15,36.59978073]
[1727342717958,6.6142,151.19,151.11,16.7574976]
[1727342717959,6.6149,151.18,151.14,6.6162]
[1727342718156,6.615,151.17,151.13,20.06088073]
[1727342721768,6.6165,151.14,151.11,16.7574976]
[1727342722065,24.027864,151.18,151.11,16.7574976]
[1727342722273,6.616,151.15,151.11,36.81947833]
[1727342724061,0.12549,151.18,151.11,30.20187833]
[1727342724374,6.6155,151.16,151.12,6.6171]
[1727342724947,6.6162,151.15,151.11,53.36327833]
[1727342725885,23.902374,151.18,151.13,13.44438073]
[1727342726187,6.6125,151.23,151.18,23.1506]
[1727342726381,6.612,151.24,151.19,6.6141]
[1727342726669,6.612,151.24,151.19,7.93682274]
[1727342726846,6.612,151.24,151.19,6.6141]
[1727342727046,13.52126878,151.24,151.19,6.6141]
[1727342727657,13.52126878,151.24,151.19,20.05848073]
[1727342727859,6.612,151.24,151.19,20.05848073]
[1727342730374,6.6129,151.22,151.17,29.6091]
[1727342730586,6.6129,151.22,151.17,43.05348073]
[1727342730748,6.6129,151.22,151.17,36.43888073]
[1727342731053,6.6138,151.2,151.17,16.4222]
[1727342731549,6.6133,151.21,151.17,16.4222]
[1727342732447,6.6137,151.2,151.17,16.4222]
[1727342734057,24.027864,151.25,151.17,23.0368]
[1727342734264,6.6133,151.21,151.17,23.0368]
[1727342734556,6.6133,151.21,151.17,16.4222]
[1727342736674,6.6137,151.2,151.17,16.4222]
[1727342738688,6.92470471,151.22,151.17,16.4222]
[1727342738879,6.92470471,151.22,151.17,36.48148073]
[1727342738880,6.6133,151.21,151.17,36.48148073]
[1727342739679,6.6133,151.21,151.17,29.86658073]
[1727342740275,6.92470471,151.22,151.17,29.86658073]
[1727342740482,6.6137,151.2,151.17,29.86658073]
[1727342741973,6.6137,151.2,151.17,16.4222]
[1727342743578,6.6134,151.21,151.17,36.48158073]
[1727342744862,6.613,151.22,151.18,6.6146]
[1727342748578,6.6133,151.21,151.17,53.01898073]
[1727342748977,6.6138,151.2,151.17,32.9597]
[1727342751674,6.6136,151.21,151.17,39.5746]
[1727342753763,6.6138,151.2,151.17,32.9597]
[1727342754790,6.6138,151.2,151.17,16.4222]
[1727342754988,6.6146,151.18,151.17,16.4222]
[1727342755396,6.6143,151.19,151.17,16.4222]
[1727342755768,6.6146,151.18,151.17,16.4222]
[1727342757180,6.6143,151.19,151.17,16.4222]
[1727342757575,40.435974,151.21,151.17,16.4222]
[1727342757779,6.6146,151.18,151.17,16.4222]